Workbook

Sheet Лист1
A1: № п.п. | B1: Наименование | C1: Тип/ Марка | D1: Завод изготовитель | E1: Ед. изм. | F1: Кол-во | G1: А | H1: В | I1: S | J1: Материалы для монтажа / Расходные материалы | V1: Группа
J2: Периметр | K2: Болт (шт.) | L2: Гайка (шт.) | M2: Траверса (п.м.) | N2: Шпилька (п.м.) | O2: Анкер (шт.) | P2: Скоба (шт.) | Q2: Уплотнитель (п.м.) | R2: Шайба (шт.) | S2: Саморез (шт.) | T2: Скотч (шт.) | U2: Гвоздь (шт.)
A3: 1 | B3: δ=0,7 мм 1600x1000 | F3: 120 | G3: =iNumber(B3,1) -> 1600 | H3: =iNumber(B3,2) -> 1000 | I3: =(G3+H3)*2*F3/1000 -> 624 | J3: =(G3+H3)*2 -> 5200 | K3: =ROUNDUP(F3*4/1.25,0) -> 384 | L3: =ROUNDUP(F3/1.25*4,0) -> 384 | M3: =ROUNDUP(G3*1.25/1000*F3/2.5,0) -> 96 | N3: =ROUNDUP((H3*1.2/1000+0.15)*2*F3/2.5,0) -> 130 | O3: =EVEN(F3/2.5*2) -> 96 | P3: =ROUND((IF(500<G3,2,0)+IF(500<H3,2,0)+IF(800<G3,2,0)+IF(800<H3,2,0))*F3/1.25,0) -> 768 | Q3: =M3 -> 96 | R3: =K3+L3+O3 -> 864 | S3: =ROUNDUP((G3/100+H3/100)*F3/4,0) -> 780 | T3: =ROUNDUP(((G3+H3)*2*1.21*F3/1000)/13,0) -> 59 | U3: =ROUNDUP(I3*15,0) -> 9360
A4: 2 | B4: ф315 | F4: 120 | G4: =iNumber(B4,1) -> - | H4: =iNumber(B4,2) -> 315 | I4: =(G4+H4)*2*F4/1000 ->  | J4: =(G4+H4)*2 ->  | K4: =ROUNDUP(F4*4/1.25,0) -> 384 | L4: =ROUNDUP(F4/1.25*4,0) -> 384 | M4: =ROUNDUP(G4*1.25/1000*F4/2.5,0) ->  | N4: =ROUNDUP((H4*1.2/1000+0.15)*2*F4/2.5,0) -> 51 | O4: =EVEN(F4/2.5*2) -> 96 | P4: =ROUND((IF(500<G4,2,0)+IF(500<H4,2,0)+IF(800<G4,2,0)+IF(800<H4,2,0))*F4/1.25,0) -> 768 | Q4: =M4 ->  | R4: =K4+L4+O4 -> 864 | S4: =ROUNDUP((G4/100+H4/100)*F4/4,0) ->  | T4: =ROUNDUP(((G4+H4)*2*1.21*F4/1000)/13,0) ->  | U4: =ROUNDUP(I4*15,0) -> 

Sheet Лист2
D2: ЗАО"ВИКОНД"
D3: Вентиляция, кондиционирование, поставка, монтаж, сервис
D4: Россия, г.Москва, Таможенный пр-д, д.6
D5: тел/факс 780-67-85
D6: E-mail: Vicond@mail.ru
B10: ПРОЕКТИРОВЩИК, заполни!!! Важно!!!
B11: Среднее растояние между фланцами (в метрах): | D11: 1.25
B12: Среднее растояние между подвесками (в метрах): | D12: 2.5
B14: Для квадратного сечения: | F14: Крепежные и уплотнительные материалы воздуховодов | P14: Изоляция
B15: АхВ | C15: L | D15: S | F15: Болт | G15: Гайка | H15: Траверса | I15: Шпилька | J15: Анкер | K15: Скоба | L15: Герлен | M15: Резина | N15: Шайба | O15: Саморез | P15: Скотч | Q15: Гвоздь
B16: мм | C16: метр | D16: м2 | F16: шт | G16: шт | H16: м.п. | I16: м.п. | J16: шт | K16: шт | L16: м.п. | M16: м.п. | N16: шт | O16: шт | P16: рул | Q16: шт
B17: 1600 | C17: 120 | D17: =(B17+B18)*2/1000*C17 -> 624 | F17: =ROUNDUP(C17*4/1.25,0) -> 384 | G17: =ROUNDUP(C17/$D$11*4,0) -> 384 | H17: =ROUNDUP(B17*1.25/1000*C17/$D$12,0) -> 96 | I17: =ROUNDUP((B18*1.2/1000+0.15)*2*C17/$D$12,0) -> 130 | J17: =EVEN(C17/$D$12*2) -> 96 | K17: =ROUND((IF(500<B17,2,0)+IF(500<B18,2,0)+IF(800<B17,2,0)+IF(800<B18,2,0))*C17/$D$11,0) -> 768 | L17: =ROUND((B17+B18)/1000*2*1.2*C17/$D$11*2,0) -> 1198 | M17: =H17 -> 96 | N17: =F17+G17+J17 -> 864 | O17: =ROUNDUP((B17/100+B18/100)*C17/4,0) -> 780 | P17: =ROUNDUP(((B18+B17)*2*1.21*C17/1000)/13,0) -> 59 | Q17: =ROUNDUP(D17*15,0) -> 9360
B18: 1000
B19: 350 | C19: 14 | D19: =(B19+B20)*2/1000*C19 -> 18.2 | F19: =ROUNDUP(C19*4/$D$11,0) -> 45 | G19: =ROUNDUP(C19/$D$11*4,0) -> 45 | H19: =ROUNDUP(B19*1.2/1000*C19/$D$12,0) -> 3 | I19: =ROUNDUP((B20*1.2/1000+0.15)*2*C19/$D$12,0) -> 6 | J19: =EVEN(C19/$D$12*2) -> 12 | K19: =ROUND((IF(500<B19,2,0)+IF(500<B20,2,0)+IF(800<B19,2,0)+IF(800<B20,2,0))*C19/$D$11,0) -> 0 | L19: =ROUND((B19+B20)/1000*2*1.2*C19/$D$11*2,0) -> 35 | M19: =H19 -> 3 | N19: =F19+G19+J19 -> 102 | O19: =ROUNDUP((B19/100+B20/100)*C19/4,0) -> 23 | P19: =ROUNDUP(((B20+B19)*2*1.21*C19/1000)/13,0) -> 2 | Q19: =ROUNDUP(D19*15,0) -> 273
B20: 300
B21: 300 | C21: 11 | D21: =(B21+B22)*2/1000*C21 -> 13.2 | F21: =ROUNDUP(C21*4/$D$11,0) -> 36 | G21: =ROUNDUP(C21/$D$11*4,0) -> 36 | H21: =ROUNDUP(B21*1.2/1000*C21/$D$12,0) -> 2 | I21: =ROUNDUP((B22*1.2/1000+0.15)*2*C21/$D$12,0) -> 5 | J21: =EVEN(C21/$D$12*2) -> 10 | K21: =ROUND((IF(500<B21,2,0)+IF(500<B22,2,0)+IF(800<B21,2,0)+IF(800<B22,2,0))*C21/$D$11,0) -> 0 | L21: =ROUND((B21+B22)/1000*2*1.2*C21/$D$11*2,0) -> 25 | M21: =H21 -> 2 | N21: =F21+G21+J21 -> 82 | O21: =ROUNDUP((B21/100+B22/100)*C21/4,0) -> 17 | P21: =ROUNDUP(((B22+B21)*2*1.21*C21/1000)/13,0) -> 2 | Q21: =ROUNDUP(D21*15,0) -> 198
B22: 300
D23: =(B23+B24)*2/1000*C23 -> 0 | F23: =ROUNDUP(C23*4/$D$11,0) -> 0 | G23: =ROUNDUP(C23/$D$11*4,0) -> 0 | H23: =ROUNDUP(B23*1.2/1000*C23/$D$12,0) -> 0 | I23: =ROUNDUP((B24*1.2/1000+0.15)*2*C23/$D$12,0) -> 0 | J23: =EVEN(C23/$D$12*2) -> 0 | K23: =ROUND((IF(500<B23,2,0)+IF(500<B24,2,0)+IF(800<B23,2,0)+IF(800<B24,2,0))*C23/$D$11,0) -> 0 | L23: =ROUND((B23+B24)/1000*2*1.2*C23/$D$11*2,0) -> 0 | M23: =H23 -> 0 | N23: =F23+G23+J23 -> 0 | O23: =ROUNDUP((B23/100+B24/100)*C23/4,0) -> 0 | P23: =ROUNDUP(((B24+B23)*2*1.21*C23/1000)/13,0) -> 0 | Q23: =ROUNDUP(D23*15,0) -> 0
D25: =(B25+B26)*2/1000*C25 -> 0 | F25: =ROUNDUP(C25*4/$D$11,0) -> 0 | G25: =ROUNDUP(C25/$D$11*4,0) -> 0 | H25: =ROUNDUP(B25*1.2/1000*C25/$D$12,0) -> 0 | I25: =ROUNDUP((B26*1.2/1000+0.15)*2*C25/$D$12,0) -> 0 | J25: =EVEN(C25/$D$12*2) -> 0 | K25: =ROUND((IF(500<B25,2,0)+IF(500<B26,2,0)+IF(800<B25,2,0)+IF(800<B26,2,0))*C25/$D$11,0) -> 0 | L25: =ROUND((B25+B26)/1000*2*1.2*C25/$D$11*2,0) -> 0 | M25: =H25 -> 0 | N25: =F25+G25+J25 -> 0 | O25: =ROUNDUP((B25/100+B26/100)*C25/4,0) -> 0 | P25: =ROUNDUP(((B26+B25)*2*1.21*C25/1000)/13,0) -> 0 | Q25: =ROUNDUP(D25*15,0) -> 0
D27: =(B27+B28)*2/1000*C27 -> 0 | F27: =ROUNDUP(C27*4/$D$11,0) -> 0 | G27: =ROUNDUP(C27/$D$11*4,0) -> 0 | H27: =ROUNDUP(B27*1.2/1000*C27/$D$12,0) -> 0 | I27: =ROUNDUP((B28*1.2/1000+0.15)*2*C27/$D$12,0) -> 0 | J27: =EVEN(C27/$D$12*2) -> 0 | K27: =ROUND((IF(500<B27,2,0)+IF(500<B28,2,0)+IF(800<B27,2,0)+IF(800<B28,2,0))*C27/$D$11,0) -> 0 | L27: =ROUND((B27+B28)/1000*2*1.2*C27/$D$11*2,0) -> 0 | M27: =H27 -> 0 | N27: =F27+G27+J27 -> 0 | O27: =ROUNDUP((B27/100+B28/100)*C27/4,0) -> 0 | P27: =ROUNDUP(((B28+B27)*2*1.21*C27/1000)/13,0) -> 0 | Q27: =ROUNDUP(D27*15,0) -> 0
D29: =(B29+B30)*2/1000*C29 -> 0 | F29: =ROUNDUP(C29*4/$D$11,0) -> 0 | G29: =ROUNDUP(C29/$D$11*4,0) -> 0 | H29: =ROUNDUP(B29*1.2/1000*C29/$D$12,0) -> 0 | I29: =ROUNDUP((B30*1.2/1000+0.15)*2*C29/$D$12,0) -> 0 | J29: =EVEN(C29/$D$12*2) -> 0 | K29: =ROUND((IF(500<B29,2,0)+IF(500<B30,2,0)+IF(800<B29,2,0)+IF(800<B30,2,0))*C29/$D$11,0) -> 0 | L29: =ROUND((B29+B30)/1000*2*1.2*C29/$D$11*2,0) -> 0 | M29: =H29 -> 0 | N29: =F29+G29+J29 -> 0 | O29: =ROUNDUP((B29/100+B30/100)*C29/4,0) -> 0 | P29: =ROUNDUP(((B30+B29)*2*1.21*C29/1000)/13,0) -> 0 | Q29: =ROUNDUP(D29*15,0) -> 0
D31: =(B31+B32)*2/1000*C31 -> 0 | F31: =ROUNDUP(C31*4/$D$11,0) -> 0 | G31: =ROUNDUP(C31/$D$11*4,0) -> 0 | H31: =ROUNDUP(B31*1.2/1000*C31/$D$12,0) -> 0 | I31: =ROUNDUP((B32*1.2/1000+0.15)*2*C31/$D$12,0) -> 0 | J31: =EVEN(C31/$D$12*2) -> 0 | K31: =ROUND((IF(500<B31,2,0)+IF(500<B32,2,0)+IF(800<B31,2,0)+IF(800<B32,2,0))*C31/$D$11,0) -> 0 | L31: =ROUND((B31+B32)/1000*2*1.2*C31/$D$11*2,0) -> 0 | M31: =H31 -> 0 | N31: =F31+G31+J31 -> 0 | O31: =ROUNDUP((B31/100+B32/100)*C31/4,0) -> 0 | P31: =ROUNDUP(((B32+B31)*2*1.21*C31/1000)/13,0) -> 0 | Q31: =ROUNDUP(D31*15,0) -> 0
B33: 315 | D33: =(B33+B34)*2/1000*C33 -> 0 | F33: =ROUNDUP(C33*4/$D$11,0) -> 0 | G33: =ROUNDUP(C33/$D$11*4,0) -> 0 | H33: =ROUNDUP(B33*1.2/1000*C33/$D$12,0) -> 0 | I33: =ROUNDUP((B34*1.2/1000+0.15)*2*C33/$D$12,0) -> 0 | J33: =EVEN(C33/$D$12*2) -> 0 | K33: =ROUND((IF(500<B33,2,0)+IF(500<B34,2,0)+IF(800<B33,2,0)+IF(800<B34,2,0))*C33/$D$11,0) -> 0 | L33: =ROUND((B33+B34)/1000*2*1.2*C33/$D$11*2,0) -> 0 | M33: =H33 -> 0 | N33: =F33+G33+J33 -> 0 | O33: =ROUNDUP((B33/100+B34/100)*C33/4,0) -> 0 | P33: =ROUNDUP(((B34+B33)*2*1.21*C33/1000)/13,0) -> 0 | Q33: =ROUNDUP(D33*15,0) -> 0
D35: =(B35+B36)*2/1000*C35 -> 0 | F35: =ROUNDUP(C35*4/$D$11,0) -> 0 | G35: =ROUNDUP(C35/$D$11*4,0) -> 0 | H35: =ROUNDUP(B35*1.2/1000*C35/$D$12,0) -> 0 | I35: =ROUNDUP((B36*1.2/1000+0.15)*2*C35/$D$12,0) -> 0 | J35: =EVEN(C35/$D$12*2) -> 0 | K35: =ROUND((IF(500<B35,2,0)+IF(500<B36,2,0)+IF(800<B35,2,0)+IF(800<B36,2,0))*C35/$D$11,0) -> 0 | L35: =ROUND((B35+B36)/1000*2*1.2*C35/$D$11*2,0) -> 0 | M35: =H35 -> 0 | N35: =F35+G35+J35 -> 0 | O35: =ROUNDUP((B35/100+B36/100)*C35/4,0) -> 0 | P35: =ROUNDUP(((B36+B35)*2*1.21*C35/1000)/13,0) -> 0 | Q35: =ROUNDUP(D35*15,0) -> 0
D37: =(B37+B38)*2/1000*C37 -> 0 | F37: =ROUNDUP(C37*4/$D$11,0) -> 0 | G37: =ROUNDUP(C37/$D$11*4,0) -> 0 | H37: =ROUNDUP(B37*1.2/1000*C37/$D$12,0) -> 0 | I37: =ROUNDUP((B38*1.2/1000+0.15)*2*C37/$D$12,0) -> 0 | J37: =EVEN(C37/$D$12*2) -> 0 | K37: =ROUND((IF(500<B37,2,0)+IF(500<B38,2,0)+IF(800<B37,2,0)+IF(800<B38,2,0))*C37/$D$11,0) -> 0 | L37: =ROUND((B37+B38)/1000*2*1.2*C37/$D$11*2,0) -> 0 | M37: =H37 -> 0 | N37: =F37+G37+J37 -> 0 | O37: =ROUNDUP((B37/100+B38/100)*C37/4,0) -> 0 | P37: =ROUNDUP(((B38+B37)*2*1.21*C37/1000)/13,0) -> 0 | Q37: =ROUNDUP(D37*15,0) -> 0
D39: =(B39+B40)*2/1000*C39 -> 0 | F39: =ROUNDUP(C39*4/$D$11,0) -> 0 | G39: =ROUNDUP(C39/$D$11*4,0) -> 0 | H39: =ROUNDUP(B39*1.2/1000*C39/$D$12,0) -> 0 | I39: =ROUNDUP((B40*1.2/1000+0.15)*2*C39/$D$12,0) -> 0 | J39: =EVEN(C39/$D$12*2) -> 0 | K39: =ROUND((IF(500<B39,2,0)+IF(500<B40,2,0)+IF(800<B39,2,0)+IF(800<B40,2,0))*C39/$D$11,0) -> 0 | L39: =ROUND((B39+B40)/1000*2*1.2*C39/$D$11*2,0) -> 0 | M39: =H39 -> 0 | N39: =F39+G39+J39 -> 0 | O39: =ROUNDUP((B39/100+B40/100)*C39/4,0) -> 0 | P39: =ROUNDUP(((B40+B39)*2*1.21*C39/1000)/13,0) -> 0 | Q39: =ROUNDUP(D39*15,0) -> 0
D41: =(B41+B42)*2/1000*C41 -> 0 | F41: =ROUNDUP(C41*4/$D$11,0) -> 0 | G41: =ROUNDUP(C41/$D$11*4,0) -> 0 | H41: =ROUNDUP(B41*1.2/1000*C41/$D$12,0) -> 0 | I41: =ROUNDUP((B42*1.2/1000+0.15)*2*C41/$D$12,0) -> 0 | J41: =EVEN(C41/$D$12*2) -> 0 | K41: =ROUND((IF(500<B41,2,0)+IF(500<B42,2,0)+IF(800<B41,2,0)+IF(800<B42,2,0))*C41/$D$11,0) -> 0 | L41: =ROUND((B41+B42)/1000*2*1.2*C41/$D$11*2,0) -> 0 | M41: =H41 -> 0 | N41: =F41+G41+J41 -> 0 | O41: =ROUNDUP((B41/100+B42/100)*C41/4,0) -> 0 | P41: =ROUNDUP(((B42+B41)*2*1.21*C41/1000)/13,0) -> 0 | Q41: =ROUNDUP(D41*15,0) -> 0
D43: =(B43+B44)*2/1000*C43 -> 0 | F43: =ROUNDUP(C43*4/$D$11,0) -> 0 | G43: =ROUNDUP(C43/$D$11*4,0) -> 0 | H43: =ROUNDUP(B43*1.2/1000*C43/$D$12,0) -> 0 | I43: =ROUNDUP((B44*1.2/1000+0.15)*2*C43/$D$12,0) -> 0 | J43: =EVEN(C43/$D$12*2) -> 0 | K43: =ROUND((IF(500<B43,2,0)+IF(500<B44,2,0)+IF(800<B43,2,0)+IF(800<B44,2,0))*C43/$D$11,0) -> 0 | L43: =ROUND((B43+B44)/1000*2*1.2*C43/$D$11*2,0) -> 0 | M43: =H43 -> 0 | N43: =F43+G43+J43 -> 0 | O43: =ROUNDUP((B43/100+B44/100)*C43/4,0) -> 0 | P43: =ROUNDUP(((B44+B43)*2*1.21*C43/1000)/13,0) -> 0 | Q43: =ROUNDUP(D43*15,0) -> 0
D45: =(B45+B46)*2/1000*C45 -> 0 | F45: =ROUNDUP(C45*4/$D$11,0) -> 0 | G45: =ROUNDUP(C45/$D$11*4,0) -> 0 | H45: =ROUNDUP(B45*1.2/1000*C45/$D$12,0) -> 0 | I45: =ROUNDUP((B46*1.2/1000+0.15)*2*C45/$D$12,0) -> 0 | J45: =EVEN(C45/$D$12*2) -> 0 | K45: =ROUND((IF(500<B45,2,0)+IF(500<B46,2,0)+IF(800<B45,2,0)+IF(800<B46,2,0))*C45/$D$11,0) -> 0 | L45: =ROUND((B45+B46)/1000*2*1.2*C45/$D$11*2,0) -> 0 | M45: =H45 -> 0 | N45: =F45+G45+J45 -> 0 | O45: =ROUNDUP((B45/100+B46/100)*C45/4,0) -> 0 | P45: =ROUNDUP(((B46+B45)*2*1.21*C45/1000)/13,0) -> 0 | Q45: =ROUNDUP(D45*15,0) -> 0
D47: =(B47+B48)*2/1000*C47 -> 0 | F47: =ROUNDUP(C47*4/$D$11,0) -> 0 | G47: =ROUNDUP(C47/$D$11*4,0) -> 0 | H47: =ROUNDUP(B47*1.2/1000*C47/$D$12,0) -> 0 | I47: =ROUNDUP((B48*1.2/1000+0.15)*2*C47/$D$12,0) -> 0 | J47: =EVEN(C47/$D$12*2) -> 0 | K47: =ROUND((IF(500<B47,2,0)+IF(500<B48,2,0)+IF(800<B47,2,0)+IF(800<B48,2,0))*C47/$D$11,0) -> 0 | L47: =ROUND((B47+B48)/1000*2*1.2*C47/$D$11*2,0) -> 0 | M47: =H47 -> 0 | N47: =F47+G47+J47 -> 0 | O47: =ROUNDUP((B47/100+B48/100)*C47/4,0) -> 0 | P47: =ROUNDUP(((B48+B47)*2*1.21*C47/1000)/13,0) -> 0 | Q47: =ROUNDUP(D47*15,0) -> 0
D49: =(B49+B50)*2/1000*C49 -> 0 | F49: =ROUNDUP(C49*4/$D$11,0) -> 0 | G49: =ROUNDUP(C49/$D$11*4,0) -> 0 | H49: =ROUNDUP(B49*1.2/1000*C49/$D$12,0) -> 0 | I49: =ROUNDUP((B50*1.2/1000+0.15)*2*C49/$D$12,0) -> 0 | J49: =EVEN(C49/$D$12*2) -> 0 | K49: =ROUND((IF(500<B49,2,0)+IF(500<B50,2,0)+IF(800<B49,2,0)+IF(800<B50,2,0))*C49/$D$11,0) -> 0 | L49: =ROUND((B49+B50)/1000*2*1.2*C49/$D$11*2,0) -> 0 | M49: =H49 -> 0 | N49: =F49+G49+J49 -> 0 | O49: =ROUNDUP((B49/100+B50/100)*C49/4,0) -> 0 | P49: =ROUNDUP(((B50+B49)*2*1.21*C49/1000)/13,0) -> 0 | Q49: =ROUNDUP(D49*15,0) -> 0
D51: =(B51+B52)*2/1000*C51 -> 0 | F51: =ROUNDUP(C51*4/$D$11,0) -> 0 | G51: =ROUNDUP(C51/$D$11*4,0) -> 0 | H51: =ROUNDUP(B51*1.2/1000*C51/$D$12,0) -> 0 | I51: =ROUNDUP((B52*1.2/1000+0.15)*2*C51/$D$12,0) -> 0 | J51: =EVEN(C51/$D$12*2) -> 0 | K51: =ROUND((IF(500<B51,2,0)+IF(500<B52,2,0)+IF(800<B51,2,0)+IF(800<B52,2,0))*C51/$D$11,0) -> 0 | L51: =ROUND((B51+B52)/1000*2*1.2*C51/$D$11*2,0) -> 0 | M51: =H51 -> 0 | N51: =F51+G51+J51 -> 0 | O51: =ROUNDUP((B51/100+B52/100)*C51/4,0) -> 0 | P51: =ROUNDUP(((B52+B51)*2*1.21*C51/1000)/13,0) -> 0 | Q51: =ROUNDUP(D51*15,0) -> 0
D53: =(B53+B54)*2/1000*C53 -> 0 | F53: =ROUNDUP(C53*4/$D$11,0) -> 0 | G53: =ROUNDUP(C53/$D$11*4,0) -> 0 | H53: =ROUNDUP(B53*1.2/1000*C53/$D$12,0) -> 0 | I53: =ROUNDUP((B54*1.2/1000+0.15)*2*C53/$D$12,0) -> 0 | J53: =EVEN(C53/$D$12*2) -> 0 | K53: =ROUND((IF(500<B53,2,0)+IF(500<B54,2,0)+IF(800<B53,2,0)+IF(800<B54,2,0))*C53/$D$11,0) -> 0 | L53: =ROUND((B53+B54)/1000*2*1.2*C53/$D$11*2,0) -> 0 | M53: =H53 -> 0 | N53: =F53+G53+J53 -> 0 | O53: =ROUNDUP((B53/100+B54/100)*C53/4,0) -> 0 | P53: =ROUNDUP(((B54+B53)*2*1.21*C53/1000)/13,0) -> 0 | Q53: =ROUNDUP(D53*15,0) -> 0
D55: =(B55+B56)*2/1000*C55 -> 0 | F55: =ROUNDUP(C55*4/$D$11,0) -> 0 | G55: =ROUNDUP(C55/$D$11*4,0) -> 0 | H55: =ROUNDUP(B55*1.2/1000*C55/$D$12,0) -> 0 | I55: =ROUNDUP((B56*1.2/1000+0.15)*2*C55/$D$12,0) -> 0 | J55: =EVEN(C55/$D$12*2) -> 0 | K55: =ROUND((IF(500<B55,2,0)+IF(500<B56,2,0)+IF(800<B55,2,0)+IF(800<B56,2,0))*C55/$D$11,0) -> 0 | L55: =ROUND((B55+B56)/1000*2*1.2*C55/$D$11*2,0) -> 0 | M55: =H55 -> 0 | N55: =F55+G55+J55 -> 0 | O55: =ROUNDUP((B55/100+B56/100)*C55/4,0) -> 0 | P55: =ROUNDUP(((B56+B55)*2*1.21*C55/1000)/13,0) -> 0 | Q55: =ROUNDUP(D55*15,0) -> 0
D57: =(B57+B58)*2/1000*C57 -> 0 | F57: =ROUNDUP(C57*4/$D$11,0) -> 0 | G57: =ROUNDUP(C57/$D$11*4,0) -> 0 | H57: =ROUNDUP(B57*1.2/1000*C57/$D$12,0) -> 0 | I57: =ROUNDUP((B58*1.2/1000+0.15)*2*C57/$D$12,0) -> 0 | J57: =EVEN(C57/$D$12*2) -> 0 | K57: =ROUND((IF(500<B57,2,0)+IF(500<B58,2,0)+IF(800<B57,2,0)+IF(800<B58,2,0))*C57/$D$11,0) -> 0 | L57: =ROUND((B57+B58)/1000*2*1.2*C57/$D$11*2,0) -> 0 | M57: =H57 -> 0 | N57: =F57+G57+J57 -> 0 | O57: =ROUNDUP((B57/100+B58/100)*C57/4,0) -> 0 | P57: =ROUNDUP(((B58+B57)*2*1.21*C57/1000)/13,0) -> 0 | Q57: =ROUNDUP(D57*15,0) -> 0
D59: =(B59+B60)*2/1000*C59 -> 0 | F59: =ROUNDUP(C59*4/$D$11,0) -> 0 | G59: =ROUNDUP(C59/$D$11*4,0) -> 0 | H59: =ROUNDUP(B59*1.2/1000*C59/$D$12,0) -> 0 | I59: =ROUNDUP((B60*1.2/1000+0.15)*2*C59/$D$12,0) -> 0 | J59: =EVEN(C59/$D$12*2) -> 0 | K59: =ROUND((IF(500<B59,2,0)+IF(500<B60,2,0)+IF(800<B59,2,0)+IF(800<B60,2,0))*C59/$D$11,0) -> 0 | L59: =ROUND((B59+B60)/1000*2*1.2*C59/$D$11*2,0) -> 0 | M59: =H59 -> 0 | N59: =F59+G59+J59 -> 0 | O59: =ROUNDUP((B59/100+B60/100)*C59/4,0) -> 0 | P59: =ROUNDUP(((B60+B59)*2*1.21*C59/1000)/13,0) -> 0 | Q59: =ROUNDUP(D59*15,0) -> 0
D61: =(B61+B62)*2/1000*C61 -> 0 | F61: =ROUNDUP(C61*4/$D$11,0) -> 0 | G61: =ROUNDUP(C61/$D$11*4,0) -> 0 | H61: =ROUNDUP(B61*1.2/1000*C61/$D$12,0) -> 0 | I61: =ROUNDUP((B62*1.2/1000+0.15)*2*C61/$D$12,0) -> 0 | J61: =EVEN(C61/$D$12*2) -> 0 | K61: =ROUND((IF(500<B61,2,0)+IF(500<B62,2,0)+IF(800<B61,2,0)+IF(800<B62,2,0))*C61/$D$11,0) -> 0 | L61: =ROUND((B61+B62)/1000*2*1.2*C61/$D$11*2,0) -> 0 | M61: =H61 -> 0 | N61: =F61+G61+J61 -> 0 | O61: =ROUNDUP((B61/100+B62/100)*C61/4,0) -> 0 | P61: =ROUNDUP(((B62+B61)*2*1.21*C61/1000)/13,0) -> 0 | Q61: =ROUNDUP(D61*15,0) -> 0
D63: =(B63+B64)*2/1000*C63 -> 0 | F63: =ROUNDUP(C63*4/$D$11,0) -> 0 | G63: =ROUNDUP(C63/$D$11*4,0) -> 0 | H63: =ROUNDUP(B63*1.2/1000*C63/$D$12,0) -> 0 | I63: =ROUNDUP((B64*1.2/1000+0.15)*2*C63/$D$12,0) -> 0 | J63: =EVEN(C63/$D$12*2) -> 0 | K63: =ROUND((IF(500<B63,2,0)+IF(500<B64,2,0)+IF(800<B63,2,0)+IF(800<B64,2,0))*C63/$D$11,0) -> 0 | L63: =ROUND((B63+B64)/1000*2*1.2*C63/$D$11*2,0) -> 0 | M63: =H63 -> 0 | N63: =F63+G63+J63 -> 0 | O63: =ROUNDUP((B63/100+B64/100)*C63/4,0) -> 0 | P63: =ROUNDUP(((B64+B63)*2*1.21*C63/1000)/13,0) -> 0 | Q63: =ROUNDUP(D63*15,0) -> 0
D65: =(B65+B66)*2/1000*C65 -> 0 | F65: =ROUNDUP(C65*4/$D$11,0) -> 0 | G65: =ROUNDUP(C65/$D$11*4,0) -> 0 | H65: =ROUNDUP(B65*1.2/1000*C65/$D$12,0) -> 0 | I65: =ROUNDUP((B66*1.2/1000+0.15)*2*C65/$D$12,0) -> 0 | J65: =EVEN(C65/$D$12*2) -> 0 | K65: =ROUND((IF(500<B65,2,0)+IF(500<B66,2,0)+IF(800<B65,2,0)+IF(800<B66,2,0))*C65/$D$11,0) -> 0 | L65: =ROUND((B65+B66)/1000*2*1.2*C65/$D$11*2,0) -> 0 | M65: =H65 -> 0 | N65: =F65+G65+J65 -> 0 | O65: =ROUNDUP((B65/100+B66/100)*C65/4,0) -> 0 | P65: =ROUNDUP(((B66+B65)*2*1.21*C65/1000)/13,0) -> 0 | Q65: =ROUNDUP(D65*15,0) -> 0
D67: =(B67+B68)*2/1000*C67 -> 0 | F67: =ROUNDUP(C67*4/$D$11,0) -> 0 | G67: =ROUNDUP(C67/$D$11*4,0) -> 0 | H67: =ROUNDUP(B67*1.2/1000*C67/$D$12,0) -> 0 | I67: =ROUNDUP((B68*1.2/1000+0.15)*2*C67/$D$12,0) -> 0 | J67: =EVEN(C67/$D$12*2) -> 0 | K67: =ROUND((IF(500<B67,2,0)+IF(500<B68,2,0)+IF(800<B67,2,0)+IF(800<B68,2,0))*C67/$D$11,0) -> 0 | L67: =ROUND((B67+B68)/1000*2*1.2*C67/$D$11*2,0) -> 0 | M67: =H67 -> 0 | N67: =F67+G67+J67 -> 0 | O67: =ROUNDUP((B67/100+B68/100)*C67/4,0) -> 0 | P67: =ROUNDUP(((B68+B67)*2*1.21*C67/1000)/13,0) -> 0 | Q67: =ROUNDUP(D67*15,0) -> 0
D69: =(B69+B70)*2/1000*C69 -> 0 | F69: =ROUNDUP(C69*4/$D$11,0) -> 0 | G69: =ROUNDUP(C69/$D$11*4,0) -> 0 | H69: =ROUNDUP(B69*1.2/1000*C69/$D$12,0) -> 0 | I69: =ROUNDUP((B70*1.2/1000+0.15)*2*C69/$D$12,0) -> 0 | J69: =EVEN(C69/$D$12*2) -> 0 | K69: =ROUND((IF(500<B69,2,0)+IF(500<B70,2,0)+IF(800<B69,2,0)+IF(800<B70,2,0))*C69/$D$11,0) -> 0 | L69: =ROUND((B69+B70)/1000*2*1.2*C69/$D$11*2,0) -> 0 | M69: =H69 -> 0 | N69: =F69+G69+J69 -> 0 | O69: =ROUNDUP((B69/100+B70/100)*C69/4,0) -> 0 | P69: =ROUNDUP(((B70+B69)*2*1.21*C69/1000)/13,0) -> 0 | Q69: =ROUNDUP(D69*15,0) -> 0
D71: =(B71+B72)*2/1000*C71 -> 0 | F71: =ROUNDUP(C71*4/$D$11,0) -> 0 | G71: =ROUNDUP(C71/$D$11*4,0) -> 0 | H71: =ROUNDUP(B71*1.2/1000*C71/$D$12,0) -> 0 | I71: =ROUNDUP((B72*1.2/1000+0.15)*2*C71/$D$12,0) -> 0 | J71: =EVEN(C71/$D$12*2) -> 0 | K71: =ROUND((IF(500<B71,2,0)+IF(500<B72,2,0)+IF(800<B71,2,0)+IF(800<B72,2,0))*C71/$D$11,0) -> 0 | L71: =ROUND((B71+B72)/1000*2*1.2*C71/$D$11*2,0) -> 0 | M71: =H71 -> 0 | N71: =F71+G71+J71 -> 0 | O71: =ROUNDUP((B71/100+B72/100)*C71/4,0) -> 0 | P71: =ROUNDUP(((B72+B71)*2*1.21*C71/1000)/13,0) -> 0 | Q71: =ROUNDUP(D71*15,0) -> 0
D73: =(B73+B74)*2/1000*C73 -> 0 | F73: =ROUNDUP(C73*4/$D$11,0) -> 0 | G73: =ROUNDUP(C73/$D$11*4,0) -> 0 | H73: =ROUNDUP(B73*1.2/1000*C73/$D$12,0) -> 0 | I73: =ROUNDUP((B74*1.2/1000+0.15)*2*C73/$D$12,0) -> 0 | J73: =EVEN(C73/$D$12*2) -> 0 | K73: =ROUND((IF(500<B73,2,0)+IF(500<B74,2,0)+IF(800<B73,2,0)+IF(800<B74,2,0))*C73/$D$11,0) -> 0 | L73: =ROUND((B73+B74)/1000*2*1.2*C73/$D$11*2,0) -> 0 | M73: =H73 -> 0 | N73: =F73+G73+J73 -> 0 | O73: =ROUNDUP((B73/100+B74/100)*C73/4,0) -> 0 | P73: =ROUNDUP(((B74+B73)*2*1.21*C73/1000)/13,0) -> 0 | Q73: =ROUNDUP(D73*15,0) -> 0
D75: =(B75+B76)*2/1000*C75 -> 0 | F75: =ROUNDUP(C75*4/$D$11,0) -> 0 | G75: =ROUNDUP(C75/$D$11*4,0) -> 0 | H75: =ROUNDUP(B75*1.2/1000*C75/$D$12,0) -> 0 | I75: =ROUNDUP((B76*1.2/1000+0.15)*2*C75/$D$12,0) -> 0 | J75: =EVEN(C75/$D$12*2) -> 0 | K75: =ROUND((IF(500<B75,2,0)+IF(500<B76,2,0)+IF(800<B75,2,0)+IF(800<B76,2,0))*C75/$D$11,0) -> 0 | L75: =ROUND((B75+B76)/1000*2*1.2*C75/$D$11*2,0) -> 0 | M75: =H75 -> 0 | N75: =F75+G75+J75 -> 0 | O75: =ROUNDUP((B75/100+B76/100)*C75/4,0) -> 0 | P75: =ROUNDUP(((B76+B75)*2*1.21*C75/1000)/13,0) -> 0 | Q75: =ROUNDUP(D75*15,0) -> 0
D77: =(B77+B78)*2/1000*C77 -> 0 | F77: =ROUNDUP(C77*4/$D$11,0) -> 0 | G77: =ROUNDUP(C77/$D$11*4,0) -> 0 | H77: =ROUNDUP(B77*1.2/1000*C77/$D$12,0) -> 0 | I77: =ROUNDUP((B78*1.2/1000+0.15)*2*C77/$D$12,0) -> 0 | J77: =EVEN(C77/$D$12*2) -> 0 | K77: =ROUND((IF(500<B77,2,0)+IF(500<B78,2,0)+IF(800<B77,2,0)+IF(800<B78,2,0))*C77/$D$11,0) -> 0 | L77: =ROUND((B77+B78)/1000*2*1.2*C77/$D$11*2,0) -> 0 | M77: =H77 -> 0 | N77: =F77+G77+J77 -> 0 | O77: =ROUNDUP((B77/100+B78/100)*C77/4,0) -> 0 | P77: =ROUNDUP(((B78+B77)*2*1.21*C77/1000)/13,0) -> 0 | Q77: =ROUNDUP(D77*15,0) -> 0
D79: =(B79+B80)*2/1000*C79 -> 0 | F79: =ROUNDUP(C79*4/$D$11,0) -> 0 | G79: =ROUNDUP(C79/$D$11*4,0) -> 0 | H79: =ROUNDUP(B79*1.2/1000*C79/$D$12,0) -> 0 | I79: =ROUNDUP((B80*1.2/1000+0.15)*2*C79/$D$12,0) -> 0 | J79: =EVEN(C79/$D$12*2) -> 0 | K79: =ROUND((IF(500<B79,2,0)+IF(500<B80,2,0)+IF(800<B79,2,0)+IF(800<B80,2,0))*C79/$D$11,0) -> 0 | L79: =ROUND((B79+B80)/1000*2*1.2*C79/$D$11*2,0) -> 0 | M79: =H79 -> 0 | N79: =F79+G79+J79 -> 0 | O79: =ROUNDUP((B79/100+B80/100)*C79/4,0) -> 0 | P79: =ROUNDUP(((B80+B79)*2*1.21*C79/1000)/13,0) -> 0 | Q79: =ROUNDUP(D79*15,0) -> 0
D81: =(B81+B82)*2/1000*C81 -> 0 | F81: =ROUNDUP(C81*4/$D$11,0) -> 0 | G81: =ROUNDUP(C81/$D$11*4,0) -> 0 | H81: =ROUNDUP(B81*1.2/1000*C81/$D$12,0) -> 0 | I81: =ROUNDUP((B82*1.2/1000+0.15)*2*C81/$D$12,0) -> 0 | J81: =EVEN(C81/$D$12*2) -> 0 | K81: =ROUND((IF(500<B81,2,0)+IF(500<B82,2,0)+IF(800<B81,2,0)+IF(800<B82,2,0))*C81/$D$11,0) -> 0 | L81: =ROUND((B81+B82)/1000*2*1.2*C81/$D$11*2,0) -> 0 | M81: =H81 -> 0 | N81: =F81+G81+J81 -> 0 | O81: =ROUNDUP((B81/100+B82/100)*C81/4,0) -> 0 | P81: =ROUNDUP(((B82+B81)*2*1.21*C81/1000)/13,0) -> 0 | Q81: =ROUNDUP(D81*15,0) -> 0
D83: =(B83+B84)*2/1000*C83 -> 0 | F83: =ROUNDUP(C83*4/$D$11,0) -> 0 | G83: =ROUNDUP(C83/$D$11*4,0) -> 0 | H83: =ROUNDUP(B83*1.2/1000*C83/$D$12,0) -> 0 | I83: =ROUNDUP((B84*1.2/1000+0.15)*2*C83/$D$12,0) -> 0 | J83: =EVEN(C83/$D$12*2) -> 0 | K83: =ROUND((IF(500<B83,2,0)+IF(500<B84,2,0)+IF(800<B83,2,0)+IF(800<B84,2,0))*C83/$D$11,0) -> 0 | L83: =ROUND((B83+B84)/1000*2*1.2*C83/$D$11*2,0) -> 0 | M83: =H83 -> 0 | N83: =F83+G83+J83 -> 0 | O83: =ROUNDUP((B83/100+B84/100)*C83/4,0) -> 0 | P83: =ROUNDUP(((B84+B83)*2*1.21*C83/1000)/13,0) -> 0 | Q83: =ROUNDUP(D83*15,0) -> 0
D85: =(B85+B86)*2/1000*C85 -> 0 | F85: =ROUNDUP(C85*4/$D$11,0) -> 0 | G85: =ROUNDUP(C85/$D$11*4,0) -> 0 | H85: =ROUNDUP(B85*1.2/1000*C85/$D$12,0) -> 0 | I85: =ROUNDUP((B86*1.2/1000+0.15)*2*C85/$D$12,0) -> 0 | J85: =EVEN(C85/$D$12*2) -> 0 | K85: =ROUND((IF(500<B85,2,0)+IF(500<B86,2,0)+IF(800<B85,2,0)+IF(800<B86,2,0))*C85/$D$11,0) -> 0 | L85: =ROUND((B85+B86)/1000*2*1.2*C85/$D$11*2,0) -> 0 | M85: =H85 -> 0 | N85: =F85+G85+J85 -> 0 | O85: =ROUNDUP((B85/100+B86/100)*C85/4,0) -> 0 | P85: =ROUNDUP(((B86+B85)*2*1.21*C85/1000)/13,0) -> 0 | Q85: =ROUNDUP(D85*15,0) -> 0
D87: =(B87+B88)*2/1000*C87 -> 0 | F87: =ROUNDUP(C87*4/$D$11,0) -> 0 | G87: =ROUNDUP(C87/$D$11*4,0) -> 0 | H87: =ROUNDUP(B87*1.2/1000*C87/$D$12,0) -> 0 | I87: =ROUNDUP((B88*1.2/1000+0.15)*2*C87/$D$12,0) -> 0 | J87: =EVEN(C87/$D$12*2) -> 0 | K87: =ROUND((IF(500<B87,2,0)+IF(500<B88,2,0)+IF(800<B87,2,0)+IF(800<B88,2,0))*C87/$D$11,0) -> 0 | L87: =ROUND((B87+B88)/1000*2*1.2*C87/$D$11*2,0) -> 0 | M87: =H87 -> 0 | N87: =F87+G87+J87 -> 0 | O87: =ROUNDUP((B87/100+B88/100)*C87/4,0) -> 0 | P87: =ROUNDUP(((B88+B87)*2*1.21*C87/1000)/13,0) -> 0 | Q87: =ROUNDUP(D87*15,0) -> 0
D89: =(B89+B90)*2/1000*C89 -> 0 | F89: =ROUNDUP(C89*4/$D$11,0) -> 0 | G89: =ROUNDUP(C89/$D$11*4,0) -> 0 | H89: =ROUNDUP(B89*1.2/1000*C89/$D$12,0) -> 0 | I89: =ROUNDUP((B90*1.2/1000+0.15)*2*C89/$D$12,0) -> 0 | J89: =EVEN(C89/$D$12*2) -> 0 | K89: =ROUND((IF(500<B89,2,0)+IF(500<B90,2,0)+IF(800<B89,2,0)+IF(800<B90,2,0))*C89/$D$11,0) -> 0 | L89: =ROUND((B89+B90)/1000*2*1.2*C89/$D$11*2,0) -> 0 | M89: =H89 -> 0 | N89: =F89+G89+J89 -> 0 | O89: =ROUNDUP((B89/100+B90/100)*C89/4,0) -> 0 | P89: =ROUNDUP(((B90+B89)*2*1.21*C89/1000)/13,0) -> 0 | Q89: =ROUNDUP(D89*15,0) -> 0
D91: =(B91+B92)*2/1000*C91 -> 0 | F91: =ROUNDUP(C91*4/$D$11,0) -> 0 | G91: =ROUNDUP(C91/$D$11*4,0) -> 0 | H91: =ROUNDUP(B91*1.2/1000*C91/$D$12,0) -> 0 | I91: =ROUNDUP((B92*1.2/1000+0.15)*2*C91/$D$12,0) -> 0 | J91: =EVEN(C91/$D$12*2) -> 0 | K91: =ROUND((IF(500<B91,2,0)+IF(500<B92,2,0)+IF(800<B91,2,0)+IF(800<B92,2,0))*C91/$D$11,0) -> 0 | L91: =ROUND((B91+B92)/1000*2*1.2*C91/$D$11*2,0) -> 0 | M91: =H91 -> 0 | N91: =F91+G91+J91 -> 0 | O91: =ROUNDUP((B91/100+B92/100)*C91/4,0) -> 0 | P91: =ROUNDUP(((B92+B91)*2*1.21*C91/1000)/13,0) -> 0 | Q91: =ROUNDUP(D91*15,0) -> 0
D93: =(B93+B94)*2/1000*C93 -> 0 | F93: =ROUNDUP(C93*4/$D$11,0) -> 0 | G93: =ROUNDUP(C93/$D$11*4,0) -> 0 | H93: =ROUNDUP(B93*1.2/1000*C93/$D$12,0) -> 0 | I93: =ROUNDUP((B94*1.2/1000+0.15)*2*C93/$D$12,0) -> 0 | J93: =EVEN(C93/$D$12*2) -> 0 | K93: =ROUND((IF(500<B93,2,0)+IF(500<B94,2,0)+IF(800<B93,2,0)+IF(800<B94,2,0))*C93/$D$11,0) -> 0 | L93: =ROUND((B93+B94)/1000*2*1.2*C93/$D$11*2,0) -> 0 | M93: =H93 -> 0 | N93: =F93+G93+J93 -> 0 | O93: =ROUNDUP((B93/100+B94/100)*C93/4,0) -> 0 | P93: =ROUNDUP(((B94+B93)*2*1.21*C93/1000)/13,0) -> 0 | Q93: =ROUNDUP(D93*15,0) -> 0
D95: =(B95+B96)*2/1000*C95 -> 0 | F95: =ROUNDUP(C95*4/$D$11,0) -> 0 | G95: =ROUNDUP(C95/$D$11*4,0) -> 0 | H95: =ROUNDUP(B95*1.2/1000*C95/$D$12,0) -> 0 | I95: =ROUNDUP((B96*1.2/1000+0.15)*2*C95/$D$12,0) -> 0 | J95: =EVEN(C95/$D$12*2) -> 0 | K95: =ROUND((IF(500<B95,2,0)+IF(500<B96,2,0)+IF(800<B95,2,0)+IF(800<B96,2,0))*C95/$D$11,0) -> 0 | L95: =ROUND((B95+B96)/1000*2*1.2*C95/$D$11*2,0) -> 0 | M95: =H95 -> 0 | N95: =F95+G95+J95 -> 0 | O95: =ROUNDUP((B95/100+B96/100)*C95/4,0) -> 0 | P95: =ROUNDUP(((B96+B95)*2*1.21*C95/1000)/13,0) -> 0 | Q95: =ROUNDUP(D95*15,0) -> 0
D97: =(B97+B98)*2/1000*C97 -> 0 | F97: =ROUNDUP(C97*4/$D$11,0) -> 0 | G97: =ROUNDUP(C97/$D$11*4,0) -> 0 | H97: =ROUNDUP(B97*1.2/1000*C97/$D$12,0) -> 0 | I97: =ROUNDUP((B98*1.2/1000+0.15)*2*C97/$D$12,0) -> 0 | J97: =EVEN(C97/$D$12*2) -> 0 | K97: =ROUND((IF(500<B97,2,0)+IF(500<B98,2,0)+IF(800<B97,2,0)+IF(800<B98,2,0))*C97/$D$11,0) -> 0 | L97: =ROUND((B97+B98)/1000*2*1.2*C97/$D$11*2,0) -> 0 | M97: =H97 -> 0 | N97: =F97+G97+J97 -> 0 | O97: =ROUNDUP((B97/100+B98/100)*C97/4,0) -> 0 | P97: =ROUNDUP(((B98+B97)*2*1.21*C97/1000)/13,0) -> 0 | Q97: =ROUNDUP(D97*15,0) -> 0
D99: =(B99+B100)*2/1000*C99 -> 0 | F99: =ROUNDUP(C99*4/$D$11,0) -> 0 | G99: =ROUNDUP(C99/$D$11*4,0) -> 0 | H99: =ROUNDUP(B99*1.2/1000*C99/$D$12,0) -> 0 | I99: =ROUNDUP((B100*1.2/1000+0.15)*2*C99/$D$12,0) -> 0 | J99: =EVEN(C99/$D$12*2) -> 0 | K99: =ROUND((IF(500<B99,2,0)+IF(500<B100,2,0)+IF(800<B99,2,0)+IF(800<B100,2,0))*C99/$D$11,0) -> 0 | L99: =ROUND((B99+B100)/1000*2*1.2*C99/$D$11*2,0) -> 0 | M99: =H99 -> 0 | N99: =F99+G99+J99 -> 0 | O99: =ROUNDUP((B99/100+B100/100)*C99/4,0) -> 0 | P99: =ROUNDUP(((B100+B99)*2*1.21*C99/1000)/13,0) -> 0 | Q99: =ROUNDUP(D99*15,0) -> 0
D101: =(B101+B102)*2/1000*C101 -> 0 | F101: =ROUNDUP(C101*4/$D$11,0) -> 0 | G101: =ROUNDUP(C101/$D$11*4,0) -> 0 | H101: =ROUNDUP(B101*1.2/1000*C101/$D$12,0) -> 0 | I101: =ROUNDUP((B102*1.2/1000+0.15)*2*C101/$D$12,0) -> 0 | J101: =EVEN(C101/$D$12*2) -> 0 | K101: =ROUND((IF(500<B101,2,0)+IF(500<B102,2,0)+IF(800<B101,2,0)+IF(800<B102,2,0))*C101/$D$11,0) -> 0 | L101: =ROUND((B101+B102)/1000*2*1.2*C101/$D$11*2,0) -> 0 | M101: =H101 -> 0 | N101: =F101+G101+J101 -> 0 | O101: =ROUNDUP((B101/100+B102/100)*C101/4,0) -> 0 | P101: =ROUNDUP(((B102+B101)*2*1.21*C101/1000)/13,0) -> 0 | Q101: =ROUNDUP(D101*15,0) -> 0
D103: =(B103+B104)*2/1000*C103 -> 0 | F103: =ROUNDUP(C103*4/$D$11,0) -> 0 | G103: =ROUNDUP(C103/$D$11*4,0) -> 0 | H103: =ROUNDUP(B103*1.2/1000*C103/$D$12,0) -> 0 | I103: =ROUNDUP((B104*1.2/1000+0.15)*2*C103/$D$12,0) -> 0 | J103: =EVEN(C103/$D$12*2) -> 0 | K103: =ROUND((IF(500<B103,2,0)+IF(500<B104,2,0)+IF(800<B103,2,0)+IF(800<B104,2,0))*C103/$D$11,0) -> 0 | L103: =ROUND((B103+B104)/1000*2*1.2*C103/$D$11*2,0) -> 0 | M103: =H103 -> 0 | N103: =F103+G103+J103 -> 0 | O103: =ROUNDUP((B103/100+B104/100)*C103/4,0) -> 0 | P103: =ROUNDUP(((B104+B103)*2*1.21*C103/1000)/13,0) -> 0 | Q103: =ROUNDUP(D103*15,0) -> 0
D105: =(B105+B106)*2/1000*C105 -> 0 | F105: =ROUNDUP(C105*4/$D$11,0) -> 0 | G105: =ROUNDUP(C105/$D$11*4,0) -> 0 | H105: =ROUNDUP(B105*1.2/1000*C105/$D$12,0) -> 0 | I105: =ROUNDUP((B106*1.2/1000+0.15)*2*C105/$D$12,0) -> 0 | J105: =EVEN(C105/$D$12*2) -> 0 | K105: =ROUND((IF(500<B105,2,0)+IF(500<B106,2,0)+IF(800<B105,2,0)+IF(800<B106,2,0))*C105/$D$11,0) -> 0 | L105: =ROUND((B105+B106)/1000*2*1.2*C105/$D$11*2,0) -> 0 | M105: =H105 -> 0 | N105: =F105+G105+J105 -> 0 | O105: =ROUNDUP((B105/100+B106/100)*C105/4,0) -> 0 | P105: =ROUNDUP(((B106+B105)*2*1.21*C105/1000)/13,0) -> 0 | Q105: =ROUNDUP(D105*15,0) -> 0
D107: =(B107+B108)*2/1000*C107 -> 0 | F107: =ROUNDUP(C107*4/$D$11,0) -> 0 | G107: =ROUNDUP(C107/$D$11*4,0) -> 0 | H107: =ROUNDUP(B107*1.2/1000*C107/$D$12,0) -> 0 | I107: =ROUNDUP((B108*1.2/1000+0.15)*2*C107/$D$12,0) -> 0 | J107: =EVEN(C107/$D$12*2) -> 0 | K107: =ROUND((IF(500<B107,2,0)+IF(500<B108,2,0)+IF(800<B107,2,0)+IF(800<B108,2,0))*C107/$D$11,0) -> 0 | L107: =ROUND((B107+B108)/1000*2*1.2*C107/$D$11*2,0) -> 0 | M107: =H107 -> 0 | N107: =F107+G107+J107 -> 0 | O107: =ROUNDUP((B107/100+B108/100)*C107/4,0) -> 0 | P107: =ROUNDUP(((B108+B107)*2*1.21*C107/1000)/13,0) -> 0 | Q107: =ROUNDUP(D107*15,0) -> 0
D109: =(B109+B110)*2/1000*C109 -> 0 | F109: =ROUNDUP(C109*4/$D$11,0) -> 0 | G109: =ROUNDUP(C109/$D$11*4,0) -> 0 | H109: =ROUNDUP(B109*1.2/1000*C109/$D$12,0) -> 0 | I109: =ROUNDUP((B110*1.2/1000+0.15)*2*C109/$D$12,0) -> 0 | J109: =EVEN(C109/$D$12*2) -> 0 | K109: =ROUND((IF(500<B109,2,0)+IF(500<B110,2,0)+IF(800<B109,2,0)+IF(800<B110,2,0))*C109/$D$11,0) -> 0 | L109: =ROUND((B109+B110)/1000*2*1.2*C109/$D$11*2,0) -> 0 | M109: =H109 -> 0 | N109: =F109+G109+J109 -> 0 | O109: =ROUNDUP((B109/100+B110/100)*C109/4,0) -> 0 | P109: =ROUNDUP(((B110+B109)*2*1.21*C109/1000)/13,0) -> 0 | Q109: =ROUNDUP(D109*15,0) -> 0
D111: =(B111+B112)*2/1000*C111 -> 0 | F111: =ROUNDUP(C111*4/$D$11,0) -> 0 | G111: =ROUNDUP(C111/$D$11*4,0) -> 0 | H111: =ROUNDUP(B111*1.2/1000*C111/$D$12,0) -> 0 | I111: =ROUNDUP((B112*1.2/1000+0.15)*2*C111/$D$12,0) -> 0 | J111: =EVEN(C111/$D$12*2) -> 0 | K111: =ROUND((IF(500<B111,2,0)+IF(500<B112,2,0)+IF(800<B111,2,0)+IF(800<B112,2,0))*C111/$D$11,0) -> 0 | L111: =ROUND((B111+B112)/1000*2*1.2*C111/$D$11*2,0) -> 0 | M111: =H111 -> 0 | N111: =F111+G111+J111 -> 0 | O111: =ROUNDUP((B111/100+B112/100)*C111/4,0) -> 0 | P111: =ROUNDUP(((B112+B111)*2*1.21*C111/1000)/13,0) -> 0 | Q111: =ROUNDUP(D111*15,0) -> 0
D113: =(B113+B114)*2/1000*C113 -> 0 | F113: =ROUNDUP(C113*4/$D$11,0) -> 0 | G113: =ROUNDUP(C113/$D$11*4,0) -> 0 | H113: =ROUNDUP(B113*1.2/1000*C113/$D$12,0) -> 0 | I113: =ROUNDUP((B114*1.2/1000+0.15)*2*C113/$D$12,0) -> 0 | J113: =EVEN(C113/$D$12*2) -> 0 | K113: =ROUND((IF(500<B113,2,0)+IF(500<B114,2,0)+IF(800<B113,2,0)+IF(800<B114,2,0))*C113/$D$11,0) -> 0 | L113: =ROUND((B113+B114)/1000*2*1.2*C113/$D$11*2,0) -> 0 | M113: =H113 -> 0 | N113: =F113+G113+J113 -> 0 | O113: =ROUNDUP((B113/100+B114/100)*C113/4,0) -> 0 | P113: =ROUNDUP(((B114+B113)*2*1.21*C113/1000)/13,0) -> 0 | Q113: =ROUNDUP(D113*15,0) -> 0
D115: =(B115+B116)*2/1000*C115 -> 0 | F115: =ROUNDUP(C115*4/$D$11,0) -> 0 | G115: =ROUNDUP(C115/$D$11*4,0) -> 0 | H115: =ROUNDUP(B115*1.2/1000*C115/$D$12,0) -> 0 | I115: =ROUNDUP((B116*1.2/1000+0.15)*2*C115/$D$12,0) -> 0 | J115: =EVEN(C115/$D$12*2) -> 0 | K115: =ROUND((IF(500<B115,2,0)+IF(500<B116,2,0)+IF(800<B115,2,0)+IF(800<B116,2,0))*C115/$D$11,0) -> 0 | L115: =ROUND((B115+B116)/1000*2*1.2*C115/$D$11*2,0) -> 0 | M115: =H115 -> 0 | N115: =F115+G115+J115 -> 0 | O115: =ROUNDUP((B115/100+B116/100)*C115/4,0) -> 0 | P115: =ROUNDUP(((B116+B115)*2*1.21*C115/1000)/13,0) -> 0 | Q115: =ROUNDUP(D115*15,0) -> 0
D117: =(B117+B118)*2/1000*C117 -> 0 | F117: =ROUNDUP(C117*4/$D$11,0) -> 0 | G117: =ROUNDUP(C117/$D$11*4,0) -> 0 | H117: =ROUNDUP(B117*1.2/1000*C117/$D$12,0) -> 0 | I117: =ROUNDUP((B118*1.2/1000+0.15)*2*C117/$D$12,0) -> 0 | J117: =EVEN(C117/$D$12*2) -> 0 | K117: =ROUND((IF(500<B117,2,0)+IF(500<B118,2,0)+IF(800<B117,2,0)+IF(800<B118,2,0))*C117/$D$11,0) -> 0 | L117: =ROUND((B117+B118)/1000*2*1.2*C117/$D$11*2,0) -> 0 | M117: =H117 -> 0 | N117: =F117+G117+J117 -> 0 | O117: =ROUNDUP((B117/100+B118/100)*C117/4,0) -> 0 | P117: =ROUNDUP(((B118+B117)*2*1.21*C117/1000)/13,0) -> 0 | Q117: =ROUNDUP(D117*15,0) -> 0
D119: =(B119+B120)*2/1000*C119 -> 0 | F119: =ROUNDUP(C119*4/$D$11,0) -> 0 | G119: =ROUNDUP(C119/$D$11*4,0) -> 0 | H119: =ROUNDUP(B119*1.2/1000*C119/$D$12,0) -> 0 | I119: =ROUNDUP((B120*1.2/1000+0.15)*2*C119/$D$12,0) -> 0 | J119: =EVEN(C119/$D$12*2) -> 0 | K119: =ROUND((IF(500<B119,2,0)+IF(500<B120,2,0)+IF(800<B119,2,0)+IF(800<B120,2,0))*C119/$D$11,0) -> 0 | L119: =ROUND((B119+B120)/1000*2*1.2*C119/$D$11*2,0) -> 0 | M119: =H119 -> 0 | N119: =F119+G119+J119 -> 0 | O119: =ROUNDUP((B119/100+B120/100)*C119/4,0) -> 0 | P119: =ROUNDUP(((B120+B119)*2*1.21*C119/1000)/13,0) -> 0 | Q119: =ROUNDUP(D119*15,0) -> 0
B121: Итого: | D121: =SUM(D17:D120) -> 655.4 | F121: =SUM(F17:F120) -> 465 | G121: =SUM(G17:G120)+J121*2 -> 701 | H121: 101 | I121: =SUM(I17:I120) -> 141 | J121: =SUM(J17:J120) -> 118 | K121: 768 | L121: 1258 | M121: 101 | N121: =SUM(N17:N120) -> 1048 | O121: =SUM(O17:O120) -> 820 | P121: =SUM(P17:P120) -> 63 | Q121: =SUM(Q17:Q120) -> 9831
B122: Уточни: | C122: К= | D122: 1.2
B123: Итого м2: | D123: =ROUNDUP(D121*D122,0) -> 787
B126: Расходные материалы и крепеж:
B128: Наименование | C128: Ед.Измерения | D128: Кол-во | F128: =F15 -> Болт | G128: Гайка | H128: Траверса | I128: Шпилька | J128: Анкер | K128: Скоба | L128: Герлен | M128: Резина | N128: Шайба | O128: Саморез | P128: Скотч | Q128: Гвоздь
B129: Болт | C129: кг | D129: =F130 -> 15 | F129: кг | G129: кг | H129: м.п. | I129: м.п. | J129: шт | K129: шт | L129: м.п. | M129: м.п. | N129: кг | O129: кг | P129: =P16 -> рул | Q129: шт
B130: Гайка | C130: кг | D130: =G130 -> 8 | F130: =ROUNDUP(F121*(0.031),0) -> 15 | G130: =ROUNDUP(G121*(0.01),0) -> 8 | H130: =ROUNDUP(H121,0) -> 101 | I130: 141 | J130: 118 | K130: 768 | L130: 1258 | M130: 101 | N130: =ROUNDUP(N121*0.0031,0) -> 4 | O130: =ROUNDUP(O121*0.005,0) -> 5 | P130: =P121 -> 63 | Q130: =Q121 -> 9831
B131: Шайба | C131: кг | D131: =N130 -> 4
B132: Герлен | C132: м.п. | D132: =L130 -> 1258 | F132: =F128 -> Болт | G132: Гайка | H132: Траверса | I132: Шпилька | J132: Анкер | K132: Скоба | L132: Герлен | M132: Резина | N132: Шайба | O132: =O128 -> Саморез | P132: =P128 -> Скотч | Q132: =Q128 -> Гвоздь
B133: Резина | C133: м.п. | D133: =M130 -> 101 | F133: Рублей
B134: Анкер | C134: шт | D134: =J130 -> 118 | F134: 46.02 | G134: 56.29 | H134: 52 | I134: 22.15 | J134: 2.05 | K134: 4.9 | L134: 7.36 | M134: 58.73 | N134: 60.04 | O134: 65.03 | P134: 216.88 | Q134: =2+1.18 -> 3.18
B135: Скоба | C135: шт | D135: =K130 -> 768 | F135: =F134*F130 -> 690.3 | G135: 450.32 | H135: 5252 | I135: 3123.15 | J135: =J134*J130 -> 241.9 | K135: =K134*K130 -> 3763.2 | L135: 9258.88 | M135: 5931.73 | N135: 240.16 | O135: =O134*O130 -> 325.15 | P135: =P134*P130 -> 13663.44 | Q135: =Q134*Q130 -> 31262.58
B136: Саморез | C136: кг | D136: =O130 -> 5
B137: Шпилька | C137: м.п. | D137: =I130 -> 141 | G137: цена за 1м2 в евро: | H137: 3 | J137: Итого по воздуховодам: | N137: Итого по изоляции:
B138: Траверса | C138: м.п. | D138: =H130 -> 101 | G138: курс евро: | H138: 35 | J138: =SUM(F135:O135) -> 29276.79 | N138: =SUM(P135:Q135) -> 44926.02
B139: Расходные материалы и крепеж.
